fUST/lending_fUST_20250828
["ID","MTS","AMOUNT","RATE_DAILY","PERIOD"]
[381709825,1756315928461,-480.0,0.00024657,2]
[381709826,1756315928470,-699.19,0.00024657,2]
[381709827,1756315928480,-480.0,0.00024657,2]
[381709828,1756315928490,-480.0,0.00024657,2]
[381709829,1756315928500,-480.0,0.00024657,2]
[381709830,1756315928510,-525.84,0.00024657,2]
[381709831,1756315928519,-480.0,0.00024657,2]
[381709832,1756315928530,-708.0,0.00024657,2]
[381709833,1756315928540,-480.0,0.00024657,2]
[381709834,1756315928549,-4922.48,0.00024657,2]
[381709835,1756315928559,-1873.21,0.00024657,2]
[381709836,1756315928569,-480.0,0.00024657,2]
[381709837,1756315928579,-2273.72,0.00024657,2]
[381709838,1756315928589,-542.01,0.00024657,2]
[381709839,1756315928602,-480.0,0.00024657,2]
[381709840,1756315928613,-480.0,0.00024657,2]
[381709841,1756315928622,-620.03,0.00024657,2]
[381709842,1756315928632,-500.0,0.00024657,2]
[381709843,1756315928643,-480.0,0.00024657,2]
[381709844,1756315928652,-480.0,0.00024657,2]
[381709845,1756315928662,-3730.3,0.00024657,2]
[381709846,1756315928672,-480.0,0.00024657,2]
[381709847,1756315928683,-480.0,0.00024657,2]
[381709848,1756315928694,-1757.83,0.00024657,2]
[381709849,1756315928704,-480.0,0.00024657,2]
[381709850,1756315928714,-4335.47,0.00024657,2]
[381709851,1756315928724,-653.99,0.00024657,2]
[381709852,1756315928735,-1061.58,0.00024657,2]
[381709853,1756315928745,-702.62,0.00024657,2]
[381709854,1756315928757,-1127.47,0.00024657,2]
[381709855,1756315928768,-480.93,0.00024657,2]
[381709856,1756315928777,-4789.45,0.00024657,2]
[381709857,1756315928787,-480.0,0.00024657,2]
[381709858,1756315928797,-2106.23,0.00024657,2]
[381709859,1756315928809,-480.0,0.00024657,2]
[381709860,1756315928818,-1335.71,0.00024657,2]
[381709861,1756315928828,-4610.0,0.00024657,2]
[381709862,1756315928837,-507.46530895,0.00024657,2]
[381709863,1756315928849,-594.54,0.00024657,2]
[381709864,1756315928860,-1585.54322685,0.00024657,2]
[381709865,1756315929302,-306.18677315,0.00024657,2]
[381709866,1756315929312,-480.0,0.00024657,2]
[381709867,1756315929322,-1424.24,0.00024657,2]
[381709868,1756315929331,-480.0,0.00024657,2]
[381709869,1756315929341,-490.12,0.00024657,2]
[381709870,1756315929351,-480.0,0.00024657,2]
[381709871,1756315929362,-2437.05,0.00024657,2]
[381709872,1756315929372,-480.0,0.00024657,2]
[381709873,1756315929382,-480.0,0.00024657,2]
[381709874,1756315929392,-480.0,0.00024657,2]
[381709875,1756315929401,-480.0,0.00024657,2]
[381709876,1756315929411,-632.92,0.00024657,2]
[381709877,1756315929420,-562.31,0.00024657,2]
[381709878,1756315929430,-1677.51,0.00024657,2]
[381709879,1756315929439,-523.31,0.00024657,2]
[381709880,1756315929450,-532.28,0.00024657,2]
[381709881,1756315929461,-480.0,0.00024657,2]
[381709882,1756315929470,-500.19,0.00024657,2]
[381709883,1756315929480,-505.61,0.00024657,2]
[381709884,1756315929489,-593.0,0.00024657,2]
[381709885,1756315929498,-2955.96,0.00024657,2]
[381709886,1756315929508,-874.64,0.00024657,2]
[381709887,1756315929518,-480.0,0.00024657,2]
[381709888,1756315929527,-480.0,0.00024657,2]
[381709889,1756315929537,-525.49,0.00024657,2]
[381709890,1756315929547,-542.14,0.00024657,2]
[381709891,1756315929557,-1307.67,0.00024657,2]
[381709892,1756315929567,-487.85,0.00024657,2]
[381709893,1756315929577,-3139.91,0.00024657,2]
[381709894,1756315929587,-673.27,0.00024657,2]
[381709895,1756315929598,-790.4,0.00024657,2]
[381709896,1756315929615,-480.0,0.00024657,2]
[381709897,1756315929624,-480.0,0.00024657,2]
[381709898,1756315929634,-490.27,0.00024657,2]
[381709899,1756315929644,-1507.95,0.00024657,2]
[381709900,1756315929654,-704.88,0.00024657,2]
[381709901,1756315929664,-472.96494847,0.00024657,2]
[381709902,1756315929675,-504.58,0.00024657,2]
[381709903,1756315929685,-1155.37,0.00024657,2]
[381709904,1756315929694,-1488.87,0.00024657,2]
[381709905,1756315929704,-480.0,0.00024657,2]
[381709906,1756315929713,-1124.84,0.00024657,2]
[381709907,1756315929722,-3001.81,0.00024657,2]
[381709908,1756315929732,-480.0,0.00024657,2]
[381709909,1756315929741,-480.0,0.00024657,2]
[381709910,1756315929751,-852.13,0.00024657,2]
[381709911,1756315929761,-808.37,0.00024657,2]
[381709912,1756315929770,-480.0,0.00024657,2]
[381709913,1756315929780,-845.32,0.00024657,2]
[381709914,1756315929789,-1712.6,0.00024657,2]
[381709915,1756315929970,-1056.32,0.00024657,2]
[381709916,1756315929979,-1736.27,0.00024657,2]
[381709917,1756315929989,-904.87,0.00024657,2]
[381709918,1756315929999,-516.12417519,0.00024657,2]
[381709919,1756315930009,-480.0,0.00024657,2]
[381709920,1756315930019,-809.45,0.00024657,2]
[381709921,1756315930028,-480.0,0.00024657,2]
[381709922,1756315930038,-480.0,0.00024657,2]
[381709923,1756315930047,-1631.08,0.00024657,2]
[381709924,1756315930056,-1300.0,0.00024657,2]
[381709925,1756315930065,-650.0,0.00024658,2]
[381709926,1756315930075,-150.0,0.00024658,2]
[381709927,1756315930084,-252.03074768,0.00024658,2]
[381709928,1756315930094,-380.0,0.00024658,2]
[381709929,1756315930103,-151.0,0.00024658,7]
[381709930,1756315930114,-151.0,0.00024658,7]
[381709931,1756315930123,-151.0,0.00024658,7]
[381709932,1756315930133,-151.0,0.00024658,7]
[381709933,1756315930142,-151.0,0.00024658,7]
[381709934,1756315930152,-151.0,0.00024658,7]
[381709935,1756315930161,-264.936472,0.00024658,7]
[381709936,1756315930171,-151.0,0.00024658,2]
[381709937,1756315930181,-500.0,0.00024658,2]
[381709938,1756315930191,-500.0,0.00024658,2]
[381709939,1756315930201,-1112.0,0.00024661,2]
[381709940,1756315930211,-460.0,0.00024704,2]
[381709941,1756315930220,-3000.0,0.00024712,2]
[381709942,1756315930230,-6800.07,0.000248,7]
[381709943,1756315930240,-302025.17362603,0.000249,2]
[381709944,1756315930988,-1189.41127386,0.00021627,2]
[381709945,1756315930997,-1780.23862326,0.00021666,2]
[381709946,1756315931008,-151.0,0.000219,2]
[381709947,1756315931017,-151.0,0.000219,2]
[381709948,1756315931027,-181.787788,0.000219,2]
[381709949,1756315931036,-151.0,0.000219,2]
[381709950,1756315931046,-151.0,0.000219,2]
[381709951,1756315931055,-151.0,0.000219,2]
[381709952,1756315931065,-151.0,0.00021917,2]
[381709953,1756315931076,-151.0,0.00021917,2]
[381709954,1756315931087,-285.56231488,0.00021917,2]
[381709955,1756315931103,-151.0,0.000219,2]
[381709956,1756315931114,-148.73773191,0.00021917,2]
[381709957,1756316011720,1110.11718911,0.000199,2]
[381709959,1756316106270,161.007692,0.00020094,2]
[381709960,1756316114406,280.736663,0.00013699,2]
[381709962,1756316186528,1073.1132827,0.000199,2]
[381709972,1756316281014,164.71,0.00015984,2]
[381709973,1756316281349,164.71,0.00015984,2]
[381709974,1756316281665,164.71,0.00015984,2]
[381709976,1756316366074,1036.3909419,0.000199,2]
[381709977,1756316543058,1096.08249313,0.000199,2]
[381709984,1756316720941,1059.5464099,0.000199,2]
[381709985,1756316724471,151.0,0.00030709,60]
[381709986,1756316904205,1023.91038184,0.000199,2]
[381709991,1756317032204,-280.736663,0.00020187,2]
[381709993,1756317032215,-261.49965579,0.00020848,2]
[381709995,1756317032225,-182.6615659,0.00020973,2]
[381709997,1756317032235,-78.01855959,0.00020991,2]
[381710000,1756317032247,-221.98144041,0.00020991,2]
[381710002,1756317032256,-819.22,0.00020992,3]
[381710004,1756317032266,-409.61,0.00020992,3]
[381710006,1756317032275,-204.8,0.00020992,3]
[381710008,1756317032285,-614.45,0.00020992,3]
[381710009,1756317032295,-243.21,0.00020992,10]
[381710012,1756317032305,-202.68,0.00020992,10]
[381710014,1756317032313,-168.9,0.00020992,10]
[381710016,1756317032323,-1200.0,0.00020997,2]
[381710018,1756317032332,-160.0,0.00020997,2]
[381710020,1756317032342,-6169.47995916,0.00021,2]
[381710022,1756317032351,-500.0,0.00021001,2]
[381710024,1756317032360,-305.55440737,0.00021001,2]
[381710026,1756317032369,-500.0,0.00021001,2]
[381710028,1756317032379,-500.0,0.00021001,2]
[381710030,1756317032388,-500.0,0.00021001,2]
[381710032,1756317032398,-500.0,0.00021001,2]
[381710034,1756317032407,-337.05894342,0.00021001,2]
[381710036,1756317032418,-42223.16177724,0.00021002,2]
[381710038,1756317032430,-10479.47315452,0.00021002,2]
[381710586,1756317037992,-11405.94194669,0.00021002,2]
[381710588,1756317038005,-23506.68393333,0.00021002,2]
[381710590,1756317038020,-1000.0,0.00021002,2]
[381710600,1756317038101,-281384.73918822,0.00021002,2]
[381710602,1756317038110,-500.0,0.00021073,2]
[381710604,1756317038119,-517.80559892,0.00021073,2]
[381710606,1756317038129,-500.0,0.00021073,2]
[381710609,1756317038138,-286.39146236,0.00021073,2]
[381710611,1756317038150,-500.0,0.00021073,2]
[381710613,1756317038159,-100000.0,0.00021263,2]
[381710615,1756317038168,-294.456397,0.000213,2]
[381710617,1756317038178,-294.456397,0.000213,2]
[381710619,1756317038188,-792.3908312,0.000213,2]
[381710621,1756317038197,-250.9075953,0.000213,2]
[381710623,1756317038206,-600.0,0.00021421,20]
[381710626,1756317038216,-182.6615659,0.00021437,2]
[381710627,1756317038225,-453.9708481,0.000215,2]
[381710629,1756317038234,-294.456397,0.000215,2]
[381710631,1756317038244,-313.0,0.00021526,2]
[381710633,1756317038253,-250.0,0.00021583,2]
[381710635,1756317038262,-250.0,0.00021583,2]
[381710637,1756317038272,-250.0,0.00021583,2]
[381710639,1756317038281,-346.90923172,0.00021583,2]
[381710641,1756317038290,-2434.74389024,0.00021583,2]
[381710643,1756317038299,-346.18398143,0.00021621,2]
[381710645,1756317038309,-724.1044627,0.00021621,2]
[381710646,1756317038318,-1023.91038178,0.00021627,2]
[381710648,1756317038327,-505.66658252,0.00021638,2]
[381710650,1756317038336,-213.72845272,0.00021888,2]
[381710651,1756317038346,-182.6615659,0.00021901,2]
[381710653,1756317038355,-500.0,0.00021904,2]
[381710655,1756317038364,-1000.0,0.00021904,2]
[381710657,1756317038374,-1000.0,0.00021904,2]
[381710658,1756317038383,-151.0,0.00021904,2]
[381710660,1756317038393,-1000.0,0.00021904,2]
[381710662,1756317038402,-151.0,0.00021904,2]
[381710664,1756317038412,-151.0,0.00021904,2]
[381710665,1756317038421,-1000.0,0.00021904,2]
[381710667,1756317038431,-151.0,0.00021904,2]
[381710669,1756317038440,-151.0,0.00021904,2]
[381710671,1756317038450,-1000.0,0.00021904,2]
[381710672,1756317038459,-151.0,0.00021904,2]
[381710674,1756317038468,-151.0,0.00021904,2]
[381710676,1756317038477,-1000.0,0.00021904,2]
[381710678,1756317038486,-194.24099703,0.00021904,2]
[381710680,1756317038497,-151.0,0.00021904,2]
[381710681,1756317038506,-1000.0,0.00021904,2]
[381710683,1756317038515,-194.72792766,0.00021904,2]
[381710685,1756317038524,-151.0,0.00021904,2]
[381710687,1756317038534,-1017.45581006,0.00021904,2]
[381710688,1756317038544,-151.0,0.00021904,2]
[381710690,1756317038555,-151.0,0.00021904,2]
[381710692,1756317038566,-151.0,0.00021904,2]
[381710694,1756317038575,-151.0,0.00021904,2]
[381710696,1756317038585,-151.0,0.00021904,2]
[381710697,1756317038595,-151.0,0.00021904,2]
[381710699,1756317038605,-151.0,0.00021904,2]
[381710701,1756317038614,-151.0,0.00021904,2]
[381710703,1756317038623,-480.0,0.00021917,2]
[381710704,1756317038633,-480.0,0.00021917,2]
[381710706,1756317038642,-480.0,0.00021917,2]
[381710708,1756317038651,-480.0,0.00021917,2]
[381710710,1756317038660,-480.0,0.00021917,2]
[381710711,1756317038669,-480.0,0.00021917,2]
[381710713,1756317038678,-480.0,0.00021917,2]
[381710715,1756317038687,-480.0,0.00021917,2]
[381710717,1756317038696,-480.0,0.00021917,2]
[381710718,1756317038706,-480.0,0.00021917,2]
[381710720,1756317038716,-480.0,0.00021917,2]
[381710722,1756317038725,-480.0,0.00021917,2]
[381710723,1756317038734,-480.0,0.00021917,2]
[381710725,1756317038744,-480.0,0.00021917,2]
[381710727,1756317038753,-185.6824076,0.00021917,2]
[381710729,1756317038762,-480.0,0.00021917,2]
[381710731,1756317038771,-480.0,0.00021917,2]
[381710733,1756317038781,-480.0,0.00021917,2]
[381710734,1756317038791,-480.0,0.00021917,2]
[381710736,1756317038800,-480.0,0.00021917,2]
[381710738,1756317038810,-480.0,0.00021917,2]
[381710740,1756317038819,-480.0,0.00021917,2]
[381710741,1756317038828,-480.0,0.00021917,2]
[381710743,1756317038837,-472.72840949,0.00021917,2]
[381710745,1756317038846,-480.0,0.00021917,2]
[381710747,1756317038855,-480.0,0.00021917,2]
[381710749,1756317038864,-480.0,0.00021917,2]
[381710751,1756317038874,-480.0,0.00021917,2]
[381710752,1756317038883,-480.0,0.00021917,2]
[381710754,1756317038892,-453.2355303,0.00021917,2]
[381710756,1756317038902,-480.0,0.00021917,2]
[381710758,1756317038911,-480.0,0.00021917,2]
[381710760,1756317038924,-480.0,0.00021917,2]
[381710762,1756317038933,-480.0,0.00021917,2]
[381710764,1756317038942,-480.0,0.00021917,2]
[381710765,1756317038950,-506.48102293,0.00021917,2]
[381710767,1756317038961,-480.0,0.00021917,2]
[381710769,1756317038970,-480.0,0.00021917,2]
[381710771,1756317038980,-480.0,0.00021917,2]
[381710773,1756317038990,-480.0,0.00021917,2]
[381710775,1756317038999,-480.0,0.00021917,2]
[381710776,1756317039010,-480.0,0.00021917,2]
[381710778,1756317039019,-480.0,0.00021917,2]
[381710780,1756317039028,-480.0,0.00021917,2]
[381710782,1756317039037,-480.0,0.00021917,2]
[381710784,1756317039046,-480.0,0.00021917,2]
[381710785,1756317039055,-480.0,0.00021917,2]
[381710787,1756317039064,-480.0,0.00021917,2]
[381710789,1756317039074,-480.0,0.00021917,2]
[381710791,1756317039084,-480.0,0.00021917,2]
[381710793,1756317039093,-480.0,0.00021917,2]
[381710795,1756317039102,-480.0,0.00021917,2]
[381710796,1756317039112,-480.0,0.00021917,2]
[381710798,1756317039123,-480.0,0.00021917,2]
[381710800,1756317039131,-480.0,0.00021917,2]
[381710802,1756317039140,-480.0,0.00021917,2]
[381710803,1756317039151,-480.0,0.00021917,2]
[381710805,1756317039160,-389.20550879,0.00021917,2]
[381710807,1756317039170,-480.0,0.00021917,2]
[381710809,1756317039179,-588.21,0.00021917,2]
[381710810,1756317039188,-480.0,0.00021917,2]
[381710812,1756317039198,-480.0,0.00021917,2]
[381710814,1756317039207,-618.17,0.00021917,2]
[381710816,1756317039217,-480.0,0.00021917,2]
[381710818,1756317039226,-480.0,0.00021917,2]
[381710819,1756317039235,-480.0,0.00021917,2]
[381710821,1756317039244,-480.0,0.00021917,2]
[381710823,1756317039253,-529.11,0.00021917,2]
[381710824,1756317039263,-388.23883954,0.00021917,2]
[381710826,1756317039272,-480.0,0.00021917,2]
[381710828,1756317039282,-480.0,0.00021917,2]
[381710830,1756317039291,-480.0,0.00021917,2]
[381710832,1756317039300,-555.52,0.00021917,2]
[381710834,1756317039309,-480.0,0.00021917,2]
[381710836,1756317039319,-480.0,0.00021917,2]
[381710837,1756317039328,-480.0,0.00021917,2]
[381710839,1756317039337,-480.0,0.00021917,2]
[381710841,1756317039347,-480.0,0.00021917,2]
[381710843,1756317039355,-480.0,0.00021917,2]
[381710845,1756317039364,-480.0,0.00021917,2]
[381710847,1756317039377,-480.0,0.00021917,2]
[381710848,1756317039386,-480.0,0.00021917,2]
[381710850,1756317039395,-480.0,0.00021917,2]
[381710852,1756317039406,-480.0,0.00021917,2]
[381710854,1756317039417,-480.0,0.00021917,2]
[381710856,1756317039426,-480.0,0.00021917,2]
[381710858,1756317039435,-480.0,0.00021917,2]
[381710859,1756317039445,-480.0,0.00021917,2]
[381710861,1756317039454,-204.93878317,0.00021917,2]
[381710863,1756317039463,-480.0,0.00021917,2]
[381710865,1756317039473,-480.0,0.00021917,2]
[381710867,1756317039482,-480.0,0.00021917,2]
[381710869,1756317039491,-480.0,0.00021917,2]
[381710870,1756317039501,-482.00771866,0.00021917,2]
[381710872,1756317039510,-480.0,0.00021917,2]
[381710874,1756317039519,-480.0,0.00021917,2]
[381710876,1756317039528,-480.0,0.00021917,2]
[381710878,1756317039538,-679.74,0.00021917,2]
[381710879,1756317039547,-480.0,0.00021917,2]
[381710881,1756317039556,-481.57562762,0.00021917,2]
[381710883,1756317039566,-319.65725652,0.00021917,2]
[381710885,1756317039575,-480.0,0.00021917,2]
[381710887,1756317039585,-481.99507694,0.00021917,2]
[381710888,1756317039594,-480.0,0.00021917,2]
[381710890,1756317039604,-480.0,0.00021917,2]
[381710892,1756317039613,-480.0,0.00021917,2]
[381710894,1756317039623,-480.0,0.00021917,2]
[381710896,1756317039632,-480.0,0.00021917,2]
[381710897,1756317039641,-480.0,0.00021917,2]
[381710900,1756317039650,-480.0,0.00021917,2]
[381710903,1756317039659,-480.0,0.00021917,2]
[381710906,1756317039668,-480.0,0.00021917,2]
[381710909,1756317039678,-480.0,0.00021917,2]
[381710912,1756317039686,-888.74,0.00021917,2]
[381710916,1756317039695,-480.0,0.00021917,2]
[381710918,1756317039705,-480.0,0.00021917,2]
[381710920,1756317039714,-480.0,0.00021917,2]
[381710922,1756317039724,-480.0,0.00021917,2]
[381710924,1756317039733,-1044.32,0.00021917,2]
[381710925,1756317039742,-480.0,0.00021917,2]
[381710927,1756317039751,-480.0,0.00021917,2]
[381710929,1756317039761,-480.0,0.00021917,2]
[381710931,1756317039770,-480.0,0.00021917,2]
[381710933,1756317039779,-748.22,0.00021917,2]
[381710934,1756317039788,-480.0,0.00021917,2]
[381710936,1756317039798,-480.0,0.00021917,2]
[381710938,1756317039807,-480.0,0.00021917,2]
[381710940,1756317039816,-480.0,0.00021917,2]
[381710942,1756317039826,-480.0,0.00021917,2]
[381710944,1756317039834,-480.0,0.00021917,2]
[381710945,1756317039844,-480.0,0.00021917,2]
[381710947,1756317039853,-480.0,0.00021917,2]
[381710949,1756317039863,-480.0,0.00021917,2]
[381710951,1756317039872,-480.0,0.00021917,2]
[381710953,1756317039881,-480.0,0.00021917,2]
[381710954,1756317039890,-480.0,0.00021917,2]
[381710956,1756317039900,-480.0,0.00021917,2]
[381710958,1756317039909,-480.0,0.00021917,2]
[381710960,1756317039921,-480.0,0.00021917,2]
[381710962,1756317039930,-480.0,0.00021917,2]
[381710964,1756317039940,-480.0,0.00021917,2]
[381710965,1756317039950,-480.0,0.00021917,2]
[381710967,1756317039959,-480.0,0.00021917,2]
[381710969,1756317039969,-480.0,0.00021917,2]
[381710971,1756317039978,-480.0,0.00021917,2]
[381710973,1756317039988,-503.04,0.00021917,2]
[381710974,1756317039999,-480.0,0.00021917,2]
[381710975,1756317040009,-559.96,0.00021917,2]
[381710976,1756317040018,-480.0,0.00021917,2]
[381710977,1756317040027,-480.0,0.00021917,2]
[381710978,1756317040037,-480.0,0.00021917,2]
[381710980,1756317040046,-480.0,0.00021917,2]
[381710982,1756317040055,-480.0,0.00021917,2]
[381710984,1756317040064,-480.0,0.00021917,2]
[381710986,1756317040074,-480.0,0.00021917,2]
[381710987,1756317040083,-480.0,0.00021917,2]
[381710989,1756317040093,-480.0,0.00021917,2]
[381710990,1756317040102,-480.0,0.00021917,2]
[381710992,1756317040112,-480.0,0.00021917,2]
[381710994,1756317040121,-480.0,0.00021917,2]
[381710996,1756317040130,-480.0,0.00021917,2]
[381710997,1756317040139,-480.0,0.00021917,2]
[381710999,1756317040148,-319.43910421,0.00021917,2]
[381711001,1756317040158,-480.0,0.00021917,2]
[381711003,1756317040168,-480.0,0.00021917,2]
[381711005,1756317040178,-480.0,0.00021917,2]
[381711006,1756317040187,-480.0,0.00021917,2]
[381711008,1756317040196,-480.0,0.00021917,2]
[381711011,1756317040206,-480.0,0.00021917,2]
[381711013,1756317040215,-480.0,0.00021917,2]
[381711015,1756317040226,-480.0,0.00021917,2]
[381711017,1756317040236,-480.0,0.00021917,2]
[381711018,1756317040245,-480.0,0.00021917,2]
[381711020,1756317040259,-548.2,0.00021917,2]
[381711022,1756317040274,-480.0,0.00021917,2]
[381711024,1756317040285,-480.0,0.00021917,2]
[381711026,1756317040297,-490.49,0.00021917,2]
[381711028,1756317040307,-480.0,0.00021917,2]
[381711030,1756317040320,-480.0,0.00021917,2]
[381711032,1756317040329,-480.0,0.00021917,2]
[381711033,1756317040338,-480.0,0.00021917,2]
[381711035,1756317040348,-480.0,0.00021917,2]
[381711037,1756317040357,-480.0,0.00021917,2]
[381711039,1756317040366,-480.0,0.00021917,2]
[381711041,1756317040376,-480.0,0.00021917,2]
[381711043,1756317040385,-480.0,0.00021917,2]
[381711044,1756317040394,-480.0,0.00021917,2]
[381711046,1756317040404,-552.55,0.00021917,2]
[381711048,1756317040414,-480.0,0.00021917,2]
[381711050,1756317040424,-480.0,0.00021917,2]
[381711068,1756317040629,-480.0,0.00021917,2]
[381711070,1756317040639,-480.0,0.00021917,2]
[381711072,1756317040649,-695.04,0.00021917,2]
[381711073,1756317040659,-498.94,0.00021917,2]
[381711075,1756317040668,-480.0,0.00021917,2]
[381711077,1756317040678,-5052.09,0.00021917,2]
[381711079,1756317040687,-609.82051804,0.00021917,2]
[381711081,1756317040697,-480.0,0.00021917,2]
[381711083,1756317040706,-480.0,0.00021917,2]
[381711085,1756317040715,-480.0,0.00021917,2]
[381711086,1756317040724,-480.0,0.00021917,2]
[381711088,1756317040734,-480.0,0.00021917,2]
[381711090,1756317040743,-480.0,0.00021917,2]
[381711092,1756317040753,-480.0,0.00021917,2]
[381711094,1756317040762,-480.0,0.00021917,2]
[381711096,1756317040771,-480.0,0.00021917,2]
[381711097,1756317040781,-785.3,0.00021917,2]
[381711099,1756317040791,-480.0,0.00021917,2]
[381711101,1756317040800,-503.1,0.00021917,2]
[381711103,1756317040809,-480.0,0.00021917,2]
[381711105,1756317040819,-480.0,0.00021917,2]
[381711107,1756317040828,-480.0,0.00021917,2]
[381711108,1756317040838,-480.0,0.00021917,2]
[381711110,1756317040848,-717.29,0.00021917,2]
[381711112,1756317040857,-480.0,0.00021917,2]
[381711114,1756317040867,-1139.99,0.00021917,2]
[381711116,1756317040878,-480.0,0.00021917,2]
[381711118,1756317040888,-483.52762212,0.00021917,2]
[381711119,1756317040897,-480.0,0.00021917,2]
[381711121,1756317040907,-480.0,0.00021917,2]
[381711123,1756317040917,-2881.12,0.00021917,2]
[381711125,1756317040931,-480.0,0.00021917,2]
[381711127,1756317040940,-553.41883093,0.00021917,2]
[381711129,1756317040950,-604.76,0.00021917,2]
[381711131,1756317040959,-480.0,0.00021917,2]
[381711133,1756317040969,-480.0,0.00021917,2]
[381711134,1756317040979,-480.0,0.00021917,2]
[381711136,1756317040990,-480.0,0.00021917,2]
[381711138,1756317041000,-480.0,0.00021917,2]
[381711140,1756317041010,-480.0,0.00021917,2]
[381711142,1756317041019,-480.0,0.00021917,2]
[381711144,1756317041028,-480.0,0.00021917,2]
[381711146,1756317041038,-922.9,0.00021917,2]
[381711147,1756317041047,-480.0,0.00021917,2]
[381711149,1756317041056,-480.0,0.00021917,2]
[381711151,1756317041066,-480.0,0.00021917,2]
[381711153,1756317041076,-1070.32,0.00021917,2]
[381711155,1756317041086,-480.0,0.00021917,2]
[381711157,1756317041095,-483.3306304,0.00021917,2]
[381711158,1756317041104,-480.0,0.00021917,2]
[381711160,1756317041114,-480.0,0.00021917,2]
[381711162,1756317041124,-648.18,0.00021917,2]
[381711164,1756317041133,-480.0,0.00021917,2]
[381711166,1756317041142,-606.27,0.00021917,2]
[381711168,1756317041151,-480.0,0.00021917,2]
[381711170,1756317041161,-480.0,0.00021917,2]
[381711171,1756317041170,-480.0,0.00021917,2]
[381711173,1756317041180,-480.0,0.00021917,2]
[381711175,1756317041189,-480.0,0.00021917,2]
[381711177,1756317041200,-480.0,0.00021917,2]
[381711178,1756317041209,-480.0,0.00021917,2]
[381711179,1756317041218,-480.0,0.00021917,2]
[381711180,1756317041227,-480.0,0.00021917,2]
[381711181,1756317041237,-738.58,0.00021917,2]
[381711182,1756317041247,-480.0,0.00021917,2]
[381711183,1756317041256,-480.0,0.00021917,2]
[381711184,1756317041266,-512.76,0.00021917,2]
[381711185,1756317041275,-480.0,0.00021917,2]
[381711186,1756317041285,-480.0,0.00021917,2]
[381711187,1756317041294,-480.0,0.00021917,2]
[381711188,1756317041303,-480.0,0.00021917,2]
[381711189,1756317041313,-480.0,0.00021917,2]
[381711190,1756317041321,-480.0,0.00021917,2]
[381711191,1756317041331,-923.03,0.00021917,2]
[381711192,1756317041341,-205.26518768,0.00021917,2]
[381711193,1756317041352,-1634.23,0.00021917,2]
[381711194,1756317041361,-511.4,0.00021917,2]
[381711195,1756317041370,-480.0,0.00021917,2]
[381711196,1756317041380,-480.0,0.00021917,2]
[381711197,1756317041389,-480.0,0.00021917,2]
[381711198,1756317041399,-480.0,0.00021917,2]
[381711199,1756317041408,-480.0,0.00021917,2]
[381711200,1756317041417,-480.0,0.00021917,2]
[381711201,1756317041427,-480.0,0.00021917,2]